Cogmind - Beta 15 @@@ ROGUE MODE // 2025.05.12 @ 17:58:29 Player: MolePlayingNice Result: Destroyed by P-80 Master with Gamma Rifle Performance ------------- Evolutions (7) 3500 Regions Visited (10) 2000 Robots Destroyed (262) 1310 Value Destroyed (12368) 12368 Prototype IDs (7) 140 Alien Tech Used (3) 600 Bonus (8236) 8236 TOTAL SCORE: 28154 Bonus ------- Triggered High Security 500 High Alert Combat Kills 6491 Follower Combat Kills 739 Registered with UFD 300 Met Optimus in HQ 500 Friendly Fire -294 Cogmind --------- Core Integrity 0/1300 Matter 300/300 Energy 68/100 System Corruption 18% Temperature Cool (0) Movement Core (50) Location -3/Protoforge Parts ------- > --- POWER (2) -------- (None) > --- PROPULSION (4) --- (None) > --- UTILITY (9) ------ (None) > --- WEAPON (6) ------- (None) > --- INVENTORY (5) ---- Improved Heavy Treads A0-MCA's Component Scanner Core Cannon Peak State ------------ > --- POWER ------------ Light Antimatter Reactor Micro Antimatter Reactor > --- PROPULSION ------- Improved Heavy Treads Overtuned Huge Scrapsphere > --- UTILITY ---------- Scrap Suit Advanced Cryofiber Web Advanced Heat Sink High-capacity Storage Unit Advanced Sensor Array Advanced Signal Interpreter Phase Armor > --- WEAPON ----------- Plasma Rifle Nova Cannon Core Cannon Railgun Railgun > --- INVENTORY -------- Light Antimatter Reactor Armored Heavy Treads Improved Cryofiber Web Advanced Heat Sink Advanced Coolant Injector High-capacity Matter Pod Deep Structural Scanner Improved Kinecellerator Heavy Servo Lattice Improved Weapon Cycler Improved Weapon Cycler Advanced Transmission Jammer Jamming Amplifier A0-MCA's Component Scanner Long-range Tractor Beam Compact HERF Cannon Heavy Missile Launcher Multitool Botcube [Rating: 167] Favorites ----------- Power Neutrino Core Engine Ion Engine Power Core Neutrino Core Reactor Light Antimatter Reactor Propulsion Overtuned Huge Scrapsphere Treads Overtuned Medium Treads Leg Aluminum Leg Wheel Overtuned Huge Scrapsphere Flight Unit Flight Unit Utility Advanced Heat Sink Device Advanced Heat Sink Storage High-capacity Storage Unit Processor Advanced Signal Interpreter Hackware Advanced Hacking Suite Protection Improved Medium Armor Plating Artifact Phase Armor Weapon Overtuned Coil Gun Energy Gun Plasma Rifle Energy Cannon Nova Cannon Ballistic Gun Overtuned Coil Gun Ballistic Cannon Hypervelocity Gauss Cannon Launcher Subdweller Shrapnel Launcher Special Weapon Mining Laser Build | -11 -10 -10 -7 -5 -5 -5 -4 -3 -3 -3 ------- Run | Yrd Mat Sub Scr Fac Was Fac Fac Res Qua Frg Slots Evolved 14 | . . . . 10 . . 2 2 . . Power 1 | . . . . 1 . . . . . . Propulsion 2 | . . . . 2 . . . . . . Utility 7 | . . . . 6 . . 1 . . . Weapon 4 | . . . . 1 . . 1 2 . . Parts Attached 181 | . 16 13 17 36 6 15 10 29 30 9 Power 26 | . 2 3 1 6 . 2 1 4 5 2 Engine 8 | . 1 3 . 3 . 1 . . . . Core 7 | . 1 . 1 3 . 1 1 . . . Reactor 11 | . . . . . . . . 4 5 2 Propulsion 29 | . 5 4 7 3 3 1 . 2 4 . Treads 19 | . 2 1 4 2 3 1 . 2 4 . Leg 4 | . 3 1 . . . . . . . . Wheel 5 | . . 2 2 1 . . . . . . Hover . | . . . . . . . . . . . Flight 1 | . . . 1 . . . . . . . Utility 66 | . 3 1 4 14 3 10 6 12 8 5 Device 40 | . 1 1 2 12 2 2 3 9 4 4 Storage 3 | . 2 . 1 . . . . . . . Processor 5 | . . . . 1 . . . 2 2 . Hackware 4 | . . . . . . 3 . 1 . . Protection 12 | . . . 1 1 1 5 3 . . 1 Artifact 2 | . . . . . . . . . 2 . Weapon 60 | . 6 5 5 13 . 2 3 11 13 2 Energy Gun 21 | . 1 2 3 . . . 2 5 6 2 Energy Cannon 9 | . . . 2 2 . . 1 . 4 . Ballistic Gun 20 | . 5 1 . 5 . 2 . 5 2 . Ballistic Cannon 2 | . . . . 1 . . . . 1 . Launcher 3 | . . 1 . 2 . . . . . . Special Weapon 5 | . . 1 . 3 . . . 1 . . Impact Weapon . | . . . . . . . . . . . Slashing Weapon . | . . . . . . . . . . . Piercing Weapon . | . . . . . . . . . . . Special Melee Weapon . | . . . . . . . . . . . Unidentified Prototypes 9 | . . . . 1 1 . . 1 3 3 Parts Lost 59 | . . 7 . 5 . 4 2 26 7 8 Power 16 | . . 2 . 4 . 2 . 4 2 2 Propulsion 4 | . . 3 . . . . . 1 . . Utility 15 | . . . . 1 . 1 1 6 4 2 Weapon 24 | . . 2 . . . 1 1 15 1 4 Highest Loss Streak 7 | . . 7 . 2 . 1 1 6 3 5 To Critical Strikes 1 | . . . . . . . . 1 . . Average Backups 14 | . 12 14 12 17 17 16 16 16 17 12 Power . | . 1 1 . . . . 1 1 . . Propulsion 2 | . 4 4 2 2 1 . 1 . . 1 Utility 6 | . 2 3 3 6 9 9 10 10 12 7 Weapon 3 | . 3 4 2 6 6 4 2 2 1 1 Tool/Special . | . . . . . . . . . . . Unused Backups 50 | . 7 . 19 5 2 4 . 3 3 7 Power 6 | . 2 . . . . 2 . 1 1 . Propulsion 7 | . 1 . 3 1 1 . . . . 1 Utility 24 | . 1 . 10 4 1 1 . 1 2 4 Weapon 10 | . 3 . 5 . . 1 . 1 . . Tool/Special 3 | . . . 1 . . . . . . 2 Average Slot Usage (%) 83 | . 97 96 79 80 82 79 74 76 80 85 Engine 3 | . 5 8 7 4 . . . . . . Core 4 | . 8 4 2 4 11 8 8 3 . . Reactor 1 | . . . . . . . . 4 7 8 Treads 6 | . 8 . 4 10 5 5 5 4 6 8 Leg 4 | . 19 19 4 . . . . . . . Wheel 5 | . . 7 14 4 5 5 5 4 1 . Device 17 | . 12 14 5 26 29 22 16 22 22 30 Storage 7 | . 14 14 11 5 5 5 5 4 4 3 Protection 3 | . . . 6 2 5 6 7 2 . . Energy Gun 7 | . 4 13 11 6 . . 7 7 8 15 Energy Cannon 2 | . . . 6 2 . . 4 2 5 3 Ballistic Gun 10 | . 23 11 . 4 16 16 7 10 11 6 Launcher 1 | . . . 4 . . . . 1 . . Peak Build Rating 167 | . 11 12 30 97 100 107 117 134 167 156 Average Rating 68 | . 9 10 17 85 94 99 111 116 143 135 On Entrance 62 | 6 6 10 12 30 91 95 91 117 105 121 Naked Turns 382 | . . . 362 . . . . . . 20 Heaviest Build 153 | 10 30 38 63 103 105 111 126 132 153 109 Greatest Support 150 | 20 40 20 50 36 70 80 80 20 150 150 Greatest Overweight (x) 13 | . 1 3 13 5 5 5 6 6 7 . Average Overweight (x) 2 | . . 1 2 4 4 4 4 5 3 . Largest Inventory Capacity 20 | . 15 15 20 20 20 20 20 20 20 20 Average Capacity 17 | . 13 15 15 20 20 20 20 20 20 19 Most Carried 20 | . 15 15 20 20 20 20 20 20 20 19 Average Carried 16 | . 12 14 13 19 19 19 19 18 19 15 Final Capacity 20 | 8 15 15 20 20 20 20 20 20 20 5 Final Carried 20 | 6 15 15 20 20 20 20 20 19 18 5 Class Distribution -------------------- 26% | Scavenger-Scrapper 26% | Mutant 18% | Scavenger-Executioner 16% | Scavenger-Mutant 6% | Scrapper 3% | Scavenger-Tank Dominant Class ---------------- Scavenger-Mutant | -10/Materials Scavenger-Mutant | -10/Subcaves Mutant | -7/Scraptown Scavenger-Scrapper | -5/Factory Scavenger-Scrapper | -5/Waste Scavenger-Scrapper | -5/Factory Scavenger-Tank | -4/Factory Scavenger-Executioner | -3/Research Scavenger-Executioner | -3/Quarantine Scavenger-Executioner | -3/Protoforge Resources | -11 -10 -10 -7 -5 -5 -5 -4 -3 -3 -3 ----------- Run | Yrd Mat Sub Scr Fac Was Fac Fac Res Qua Frg Matter Collected 9863 | 199 351 251 205 2437 211 2197 402 1788 1393 429 Remotely 1513 | . . . . . . 171 . 922 420 . Salvage Created 13464 | . 666 250 . 2937 342 3742 685 2798 1265 779 Parts 642 | . 43 18 . 143 3 179 25 145 47 39 Haulers Intercepted 2 | . 1 . . . . . . 1 . . Recyclers Shooed 13 | . 2 . . 2 . 4 . 5 . . Parts Field Recycled . | . . . . . . . . . . . Retrieved Matter . | . . . . . . . . . . . Parts Self-Destructed 10 | . . 10 . . . . . . . . Prevented . | . . . . . . . . . . . Kills | -11 -10 -10 -7 -5 -5 -5 -4 -3 -3 -3 ------- Run | Yrd Mat Sub Scr Fac Was Fac Fac Res Qua Frg Combat Hostiles Destroyed 196 | . 15 5 . 37 1 60 9 40 18 11 Guns 140 | . 15 5 . 14 1 56 5 21 15 8 Cannons 16 | . . . . 7 . . 2 4 1 2 AOE 32 | . . . . 14 . 4 . 13 1 . Classes Destroyed 21 | . 8 2 . 6 1 2 1 1 . . Worker 18 | . 1 . . 6 . 3 . 7 . 1 Builder 17 | . . . . 4 . 2 . 10 . 1 Tunneler 1 | . 1 . . . . . . . . . Hauler 2 | . 1 . . . . . . 1 . . Recycler 14 | . 1 . . 8 . 3 . 2 . . Mechanic 2 | . 1 . . . . . 1 . . . Operator 3 | . . . . 2 . . . . 1 . Watcher 7 | . 1 . . 3 . 1 . 1 1 . Swarmer 30 | . 6 . . 8 . 4 . 8 . 4 Saboteur 3 | . . . . . . . 1 1 1 . Grunt 78 | . 9 . . 15 . 30 4 10 10 . Duelist 3 | . . . . . . 1 . . 2 . Protector 2 | . . . . . . 2 . . . . Sentry 17 | . . . . 4 . 6 4 2 . 1 Hunter 18 | . . . . 1 . 5 . 12 . . Programmer 31 | . . . . 8 . 12 . 5 5 1 Behemoth 1 | . . . . . . . . 1 . . Compactor 1 | . . . . . 1 . . . . . Hotshot 5 | . . . . . . . . . . 5 Artisan 1 | . . 1 . . . . . . . . Subdweller 5 | . . 5 . . . . . . . . Scrapoid 4 | . . . . 3 . . . 1 . . Best Kill Streak 22 | . 4 4 . 10 1 22 5 13 9 4 Combat Bots Only 18 | . 4 4 . 6 1 18 4 9 9 3 Max Kills in Single Turn 4 | . 1 1 . 4 1 2 2 4 1 1 Gunslinging 1 | . . . . . . 1 . . . . Exploded 4 | . . . . 4 . 1 . 3 1 . Melee . | . . . . . . . . . . . Uniques/NPCs Destroyed . | . . . . . . . . . . . Combat | -11 -10 -10 -7 -5 -5 -5 -4 -3 -3 -3 -------- Run | Yrd Mat Sub Scr Fac Was Fac Fac Res Qua Frg Hostile Shots Fired 1209 | . 70 51 . 153 . 223 62 354 188 108 Missed 310 | . 17 14 . 55 . 44 15 94 43 28 Hits 899 | . 53 37 . 98 . 179 47 260 145 80 Melee 1 | . . . . . . . 1 . . . Projectile 898 | . 53 37 . 98 . 179 46 260 145 80 Critical Strikes 50 | . . . . 2 . 6 4 14 16 8 Actively Blocked 2 | . . . . . . . . . . 2 Part Disruptions 2 | . . . . 1 . . . 1 . . Damage Taken 18639 | . 635 754 . 1980 . 3669 948 5012 3207 2434 Core 2114 | . 121 99 . 177 . 309 96 241 428 643 Absorbed by Shields 190 | . . . . . . . 54 136 . . Reduced by Siege Mode 722 | . . . . . . 44 13 266 168 231 Redirected to Core 246 | . . . . . . . . . 246 . Redirected to Shielding 90 | . . . . . . . . . . 90 Ignored by Resistances 41 | . . . . 41 . . . . . . Regen/Repaired (Parts) 2184 | . . . 502 152 . 1356 34 140 . . Core Remaining (%) 63 | 100 . . 12 . . 51 91 . . . Volleys Fired 679 | . 81 36 . 143 8 150 24 127 68 42 Largest 6 | . 2 2 . 3 3 3 4 6 6 6 Hottest 457 | . 85 120 . 250 104 104 285 403 440 457 Shots Fired 1778 | . 160 65 . 246 24 403 89 429 199 163 Gun 1521 | . 160 58 . 148 24 398 66 365 162 140 Cannon 213 | . . . . 81 . . 23 50 36 23 Launcher 31 | . . . . 13 . 5 . 12 1 . Special 13 | . . 7 . 4 . . . 2 . . Kinetic 1126 | . 118 56 . 109 24 398 32 222 120 47 Thermal 624 | . 42 9 . 129 . . 57 193 78 116 Explosive 22 | . . . . 4 . 5 . 12 1 . Electromagnetic . | . . . . . . . . . . . Robot Hit Streak 20 | . 10 14 . 17 6 20 11 12 13 11 Robot Miss Streak 7 | . 5 1 . 4 2 5 3 7 5 7 Penetration Max 2 | . . . . 1 . 2 . 2 2 1 Secondary Targets 28 | . 1 2 . 1 . 14 . 6 4 . Max Gunslinging Chain 1 | . 1 1 . 1 . 1 . 1 1 . Shots Hit Robots 1083 | . 104 46 . 146 16 248 59 246 119 99 Core Hits 539 | . 44 17 . 95 1 129 19 144 52 38 Critical Kills 25 | . . . . 5 . 9 2 6 2 1 Critical Parts Destroyed 29 | . . . . 6 . 16 2 3 2 . Critical Strikes 75 | . . . . 16 4 25 6 15 6 3 Burn 16 | . . . . 4 . . 2 6 2 2 Meltdown 3 | . . . . . . . . 1 1 1 Destroy 56 | . . . . 12 4 25 4 8 3 . Melee Attacks . | . . . . . . . . . . . Impact . | . . . . . . . . . . . Slashing . | . . . . . . . . . . . Piercing . | . . . . . . . . . . . Sneak Attacks . | . . . . . . . . . . . Combat Hostiles . | . . . . . . . . . . . Follow-up Attacks . | . . . . . . . . . . . Damage Inflicted 36023 | . 1106 461 . 6357 637 10546 1624 8781 3703 2808 Guns 25315 | . 1073 461 . 2610 637 8967 1036 5138 3064 2329 Cannons 4126 | . . . . 1440 . . 588 1231 388 479 Explosions 6411 | . . . . 2299 . 1518 . 2350 244 . Melee . | . . . . . . . . . . . Ramming 171 | . 33 . . 8 . 61 . 62 7 . Kinetic 20383 | . 670 461 . 2759 637 8967 465 3087 2455 882 Thermal 11499 | . 403 . . 2895 . 837 1159 3282 997 1926 Explosive 3943 | . . . . 668 . 681 . 2350 244 . Electromagnetic 27 | . . . . 27 . . . . . . Impact . | . . . . . . . . . . . Slashing . | . . . . . . . . . . . Piercing . | . . . . . . . . . . . Highest Corruption 18 | . . . . 4 4 14 . 9 16 18 Average Corruption 8 | . . . . 3 4 8 . 8 12 16 Corruption Purged 4 | . . . . . . . . . 4 . Corruption Blocked . | . . . . . . . . . . . Effects 236 | . . . . 34 9 74 . 31 58 30 Message Errors 45 | . . . . 9 1 15 . 6 11 3 Matter Fused 55 | . . . . 6 5 17 . 9 12 6 Heat Flow Errors 30 | . . . . 2 2 9 . 1 12 4 Energy Discharges 34 | . . . . 7 1 14 . 3 6 3 Parts Rejected 1 | . . . . . . 1 . . . . Parts Fused 3 | . . . . . . . . . 3 . Data Loss (minor) 25 | . . . . 5 . 8 . 6 2 4 Data Loss (major) 7 | . . . . 2 . 1 . . 2 2 Misfires 10 | . . . . . . 3 . 2 3 2 Alerts 1 | . . . . . . . . . 1 . Misdirections 1 | . . . . . . . . . 1 . Weapon Failures 24 | . . . . 3 . 6 . 4 5 6 Overload Shots . | . . . . . . . . . . . Overflow Damage 283 | . . . . 149 . 30 12 81 2 9 Projectiles 104 | . . . . 62 . . 12 19 2 9 Explosions 149 | . . . . 87 . . . 62 . . Melee 30 | . . . . . . 30 . . . . Knockbacks 4 | . . . . 3 . . . 1 . . Impact 1 | . . . . . . . . 1 . . Kinetic 3 | . . . . 3 . . . . . . Secondary . | . . . . . . . . . . . Self-Inflicted Damage 337 | . 85 . . 93 . 91 . 68 . . Shots 9 | . 1 . . 3 . 2 . 3 . . Rammed 9 | . 1 . . 1 . 2 . 4 1 . Targets Rammed 14 | . 6 . . 1 . 2 . 4 1 . Kicked 3 | . 3 . . . . . . . . . Crushed 2 | . 2 . . . . . . . . . Highest Temperature 593 | . 56 . . 225 32 88 223 593 311 . Average Temperature 80 | . 21 . . 94 32 35 112 165 99 . Received Heat Transfer 3051 | . 231 96 . 294 . 959 209 351 434 477 Effects 2 | . . . . . . . . 1 1 . Interference 1 | . . . . . . . . . 1 . Matter Decay 1 | . . . . . . . . 1 . . Siege Activations 26 | . . . . . . 11 2 7 4 2 Total Turns 500 | . . . . . . 130 36 109 134 91 Longest Duration 63 | . . . . . . 48 26 42 63 48 Martial Activations . | . . . . . . . . . . . Shielding Activations . | . . . . . . . . . . . Robots Disrupted . | . . . . . . . . . . . Combat Hostiles . | . . . . . . . . . . . Robots Corrupted . | . . . . . . . . . . . Combat Hostiles . | . . . . . . . . . . . Parts Fried 3 | . . . . . . 3 . . . . Impact Corruptions 1 | . . . . . . 1 . . . . Robots Melted 10 | . . . . 3 . . 2 2 2 1 Combat Hostiles 8 | . . . . 2 . . 2 2 1 1 Parts Melted 59 | . 1 . . 13 . 2 6 23 11 3 Heat Transferred 17996 | . 962 . . 4445 . 550 1912 5357 1792 2978 Parts Sabotaged 1 | . . . . . . . 1 . . . Parts Stolen . | . . . . . . . . . . . Parts Stripped . | . . . . . . . . . . . Power Chain Reactions . | . . . . . . . . . . . Alert | -11 -10 -10 -7 -5 -5 -5 -4 -3 -3 -3 ------- Run | Yrd Mat Sub Scr Fac Was Fac Fac Res Qua Frg Maximum Alert Level 5 | . . . . 5 4 5 4 5 4 2 Low Security (%) 24 | . 100 . . 15 . . . . . . Level 1 1 | . . . . 9 . . . . . . Level 2 11 | . . . . 2 . 14 . 12 . 100 Level 3 30 | . . . . 31 95 26 . 35 80 . Level 4 25 | . . . . 28 4 45 100 33 19 . Level 5 7 | . . . . 11 . 13 . 18 . . High Security . | . . . . . . . . . . . Max Security . | . . . . . . . . . . . Peak Influence 2546 | . 191 . . 1688 1100 2546 1317 1759 1158 620 Initial 1242 | . . . . . 1100 639 1242 679 966 584 Average 835 | . 98 . . 909 1009 1211 1239 1156 998 528 Influence Increases 8515 | . 558 . . 2302 20 2541 287 1838 641 328 Destroy 0b10 Robot/C 4060 | . 300 . . 820 . 1160 180 1020 360 220 Destroy 0b10 Robot/NC 350 | . 40 . . 125 . 55 5 105 10 10 Destroy Leader 808 | . 64 . . 156 . 262 50 174 52 50 Allied During Kill 135 | . . . . 15 . . . 120 . . Successful Hack 169 | . 18 . . 46 . 44 . 24 32 5 Select Force Hacks 30 | . 30 . . . . . . . . . Disable Machine 840 | . 15 . . 360 . 270 . 60 120 15 Destroy Structure 1703 | . 31 . . 570 20 660 52 290 52 28 Lose Combat Pursuer 420 | . 60 . . 210 . 90 . 45 15 . Influence Decreases 8474 | . 546 12 . 623 1298 919 1528 1414 1321 813 Entered New Map 4492 | . . 7 . . 1092 275 1294 616 753 455 Time Decay 3342 | . 546 5 . 533 206 604 214 458 498 278 Lost Part 520 | . . . . 50 . 40 20 260 70 80 Lost Ally 120 | . . . . 40 . . . 80 . . Squads Dispatched 59 | . 3 . . 12 . 16 4 17 6 1 Investigation 14 | . 2 . . 4 . 5 . 3 . . Extermination 15 | . . . . 3 . 4 1 3 3 1 Reinforcement 15 | . 1 . . 3 . 2 1 7 1 . Assault 11 | . . . . 1 . 3 2 3 2 . Garrison 4 | . . . . 1 . 2 . 1 . . Intercept . | . . . . . . . . . . . Searches Triggered . | . . . . . . . . . . . Construction Impeded 5 | . . . . 2 . 1 . 2 . . Haulers Reinforced 4 | . . . . 1 . 1 . 2 . . Active Scanning Responses . | . . . . . . . . . . . Cargo Convoy Interrupts . | . . . . . . . . . . . Stealth | -11 -10 -10 -7 -5 -5 -5 -4 -3 -3 -3 --------- Run | Yrd Mat Sub Scr Fac Was Fac Fac Res Qua Frg Distress Signals 16 | . 5 . . 4 . 1 . 5 . 1 Communications Jammed 4 | . . . . . . . . . . 4 Distress Signals 2 | . . . . . . . . . . 2 Times Spotted 287 | . 29 5 . 59 1 71 17 61 26 18 Peak Tracking Total 10 | . 5 4 . 9 1 7 10 7 5 8 Tactical Retreats 14 | . 3 . . 4 . 3 . 3 1 . Traps | -11 -10 -10 -7 -5 -5 -5 -4 -3 -3 -3 ------- Run | Yrd Mat Sub Scr Fac Was Fac Fac Res Qua Frg Traps Triggered 9 | . 5 . . 1 . 1 . . . 2 Indirectly . | . . . . . . . . . . . Trap Hack Attempts . | . . . . . . . . . . . Triggered . | . . . . . . . . . . . Disarmed . | . . . . . . . . . . . Reprogrammed . | . . . . . . . . . . . Reused . | . . . . . . . . . . . Traps Extracted . | . . . . . . . . . . . Installed . | . . . . . . . . . . . Triggered . | . . . . . . . . . . . Machines | -11 -10 -10 -7 -5 -5 -5 -4 -3 -3 -3 ---------- Run | Yrd Mat Sub Scr Fac Was Fac Fac Res Qua Frg Machines Disabled 57 | . 1 . . 24 . 18 . 4 9 1 Max in Single Turn 6 | . 1 . . 6 . 4 . 1 1 1 Machines Repaired . | . . . . . . . . . . . Machines Dismantled . | . . . . . . . . . . . Machines Sabotaged . | . . . . . . . . . . . Overloaded Fab Kills . | . . . . . . . . . . . Hacking | -11 -10 -10 -7 -5 -5 -5 -4 -3 -3 -3 --------- Run | Yrd Mat Sub Scr Fac Was Fac Fac Res Qua Frg Machines Accessed 46 | . 6 . 5 9 . 9 2 7 5 3 Terminals 21 | . 5 . . 2 . 3 1 3 4 3 Fabricators 2 | . . . . 1 . . . 1 . . Repair Stations 4 | . . . . 1 . 2 . 1 . . Recycling Units 7 | . 1 . . 2 . 3 . 1 . . Scanalyzers 5 | . . . . 2 . 1 1 . 1 . Garrison Access 2 | . . . . 1 . . . 1 . . Total Hacks 149 | . 19 . 45 29 . 26 3 13 8 6 Successful 92 | . 11 . 45 12 . 14 2 3 3 2 Failed 57 | . 8 . . 17 . 12 1 10 5 4 Catastrophic 14 | . . . . 5 . 2 . 5 2 . Database Lockouts . | . . . . . . . . . . . Manual 52 | . 17 . . 9 . 11 1 9 4 1 Terminals 46 | . 17 . . 4 . 7 1 5 6 6 Fabricators 2 | . . . . 1 . . . 1 . . Repair Stations 17 | . . . . 2 . 12 . 3 . . Recycling Units 20 | . 2 . . 11 . 5 . 2 . . Scanalyzers 15 | . . . . 9 . 2 2 . 2 . Garrison Access 4 | . . . . 2 . . . 2 . . Terminal Hacks 53 | . 1 . 45 2 . . . 1 2 2 Record 45 | . . . 45 . . . . . . . Part Schematic 1 | . . . . . . . . . 1 . Recycling Unit Index 2 | . . . . . . . . 1 1 . Hauler Manifests 1 | . . . . . . . . . . 1 Registered Components 1 | . 1 . . . . . . . . . Registered Prototypes 1 | . . . . 1 . . . . . . Zone Layout 2 | . . . . 1 . . . . . 1 Fabricator Hacks . | . . . . . . . . . . . Repair Station Hacks 10 | . . . . . . 10 . . . . Scan Component 5 | . . . . . . 5 . . . . Repair 5 | . . . . . . 5 . . . . Recycling Unit Hacks 3 | . . . . 3 . . . . . . Retrieve Matter 3 | . . . . 3 . . . . . . Scanalyzer 8 | . . . . 4 . 1 2 . 1 . Insert Component 6 | . . . . 3 . 1 1 . 1 . Analyze 2 | . . . . 1 . . 1 . . . Garrison Access Hacks . | . . . . . . . . . . . Unauthorized Hacks 18 | . 10 . . 3 . 3 . 2 . . Terminals 9 | . 9 . . . . . . . . . Botnet 3 | . 3 . . . . . . . . . Operators 1 | . 1 . . . . . . . . . Skim 5 | . 5 . . . . . . . . . Fabricators . | . . . . . . . . . . . Repair Stations 2 | . . . . 1 . . . 1 . . Patch 2 | . . . . 1 . . . 1 . . Recycling Units 7 | . 1 . . 2 . 3 . 1 . . Recyclers 1 | . . . . 1 . . . . . . Tunnel 1 | . 1 . . . . . . . . . Fedlink 4 | . . . . 1 . 3 . . . . Scrapoids 1 | . . . . . . . . 1 . . Scanalyzers . | . . . . . . . . . . . Garrison Access . | . . . . . . . . . . . Data Cores Recovered 1 | . . . . . . . . . 1 . Used . | . . . . . . . . . . . Hacking Detections 34 | . 6 . . 7 . 7 2 7 2 3 Full Trace Events 4 | . . . . 1 . 2 . 1 . . Feedback Events . | . . . . . . . . . . . Feedback Blocked . | . . . . . . . . . . . Robot Schematics Acquired . | . . . . . . . . . . . Robots Built . | . . . . . . . . . . . Authchips . | . . . . . . . . . . . Time . | . . . . . . . . . . . Total Robot Build Rating . | . . . . . . . . . . . Part Schematics Acquired 3 | . . . . 1 . . 1 . 1 . Parts Built . | . . . . . . . . . . . Authchips . | . . . . . . . . . . . Time . | . . . . . . . . . . . Total Part Build Rating . | . . . . . . . . . . . Parts Repaired 5 | . . . . . . 5 . . . . Time 299 | . . . . . . 299 . . . . Parts Recycled . | . . . . . . . . . . . Recycled Matter . | . . . . . . . . . . . Retrieved Matter . | . . . . . . . . . . . Retrieved Components . | . . . . . . . . . . . Parts Scanalyzed 3 | . . . . 2 . 1 . . . . Part Schematics Acquired 2 | . . . . 1 . . 1 . . . Parts Damaged 1 | . . . . 1 . . . . . . Bothacking | -11 -10 -10 -7 -5 -5 -5 -4 -3 -3 -3 ------------ Run | Yrd Mat Sub Scr Fac Was Fac Fac Res Qua Frg Used RIF Installer . | . . . . . . . . . . . Robots Hacked . | . . . . . . . . . . . Non-combat . | . . . . . . . . . . . Combat . | . . . . . . . . . . . Robot Hacks Applied . | . . . . . . . . . . . Relay Couplers Released 3 | . . . . . . 3 . . . . Programmers 3 | . . . . . . 3 . . . . Fabnet Peak Effective % . | . . . . . . . . . . . Robots Rewired 1 | . . . . 1 . . . . . . Allies Hacked 1 | . . . . . . . . 1 . . Hacks Repelled . | . . . . . . . . . . . Allies | -11 -10 -10 -7 -5 -5 -5 -4 -3 -3 -3 -------- Run | Yrd Mat Sub Scr Fac Was Fac Fac Res Qua Frg Total Allies 11 | . . . . 6 . . . 5 . . Largest Group 5 | . . . . 5 . . . 5 . . Highest-Rated Group 323 | . . . . 238 . . . 323 . . Highest-Rated Ally 67 | . . . . 50 . . . 67 . . Total Orders . | . . . . . . . . . . . Ally Attacks 73 | . . . . 25 . . . 48 . . Total Damage 2497 | . . . . 1116 . . . 1381 . . Kills 17 | . . . . 6 . . . 11 . . Allies Corrupted . | . . . . . . . . . . . Allies Melted . | . . . . . . . . . . . Intel | -11 -10 -10 -7 -5 -5 -5 -4 -3 -3 -3 ------- Run | Yrd Mat Sub Scr Fac Was Fac Fac Res Qua Frg Active Infowar (turns) 4654 | . . 346 918 170 418 732 . 222 1260 588 Optics 254 | . . . . . . . . . 254 . Sensors 900 | . . . . . . . . 222 678 . Structural 1978 | . . . . 170 . 524 . . 819 465 Seismic 1890 | . . 346 918 . 418 208 . . . . Jamming 590 | . . . . . . . . . 2 588 Robot Analysis Total . | . . . . . . . . . . . Derelict Logs Recovered 6 | . . 2 4 . . . . . . . Drone Launches . | . . . . . . . . . . . Drone Recoveries . | . . . . . . . . . . . Exploration | -11 -10 -10 -7 -5 -5 -5 -4 -3 -3 -3 ------------- Run | Yrd Mat Sub Scr Fac Was Fac Fac Res Qua Frg Turns Passed 13354 | . 2050 655 3067 1684 433 1947 446 1141 1323 608 Spaces Moved 7969 | 1 644 350 2740 1078 327 1132 222 559 625 291 Core 772 | . . . 732 . . . . . . 40 Treads 961 | . 280 . 90 1 1 7 33 . 298 251 Legs 458 | 1 364 93 . . . . . . . . Wheels 5624 | . . 257 1764 1077 326 1125 189 559 327 . Hover . | . . . . . . . . . . . Flight 154 | . . . 154 . . . . . . . Fastest Speed 40 | 120 120 110 40 100 120 110 110 110 110 50 Average Speed 122 | 120 167 138 107 110 120 117 139 121 156 144 Slowest Speed 700 | 120 240 190 700 180 240 250 250 130 245 160 Overloaded Moves . | . . . . . . . . . . . Propulsion Burnouts . | . . . . . . . . . . . Robots Hopped . | . . . . . . . . . . . Potential Cave-ins 4 | . . . . . . 4 . . . . Cave-ins Triggered . | . . . . . . . . . . . Exploration Rate (%) 42 | 2 85 20 89 30 91 36 6 16 75 14 Regions Visited 10 Branch Regions 4 Pre-discovered Areas 9 | . 2 . 6 . . 1 . . . . Known Exits Taken 4 | . 1 . 1 . . 1 . 1 . . Unknown Exits Taken 4 | 1 . 1 . . . . 1 . 1 . Scrap Searched 7 | . . . 7 . . . . . . . Spaces Dug 178 | . . . . 67 . 42 . 58 4 7 Terrain Destroyed 994 | . 45 . . 281 10 412 27 183 22 14 Melee . | . . . . . . . . . . . Projectile 503 | . . . . 76 10 293 27 67 16 14 AOE 488 | . 45 . . 205 . 119 . 113 6 . Terrain Rammed . | . . . . . . . . . . . Walls Destroyed . | . . . . . . . . . . . Machines Disabled . | . . . . . . . . . . . Actions | -11 -10 -10 -7 -5 -5 -5 -4 -3 -3 -3 --------- Run | Yrd Mat Sub Scr Fac Was Fac Fac Res Qua Frg Total 10637 | . 1479 444 2886 1421 362 1633 312 846 849 405 Wait 1299 | . 682 31 . 91 7 288 51 66 38 45 Move 7960 | . 643 349 2739 1078 326 1131 221 558 624 291 Hop . | . . . . . . . . . . . Pick Up 174 | . 19 4 66 23 2 15 1 21 22 1 Fast Attach 114 | . 12 6 20 18 5 6 5 14 20 8 Attach 62 | . . 7 6 10 . 1 3 16 11 8 Detach 25 | . . 4 2 5 . 2 2 3 1 6 Swap 123 | . 14 4 4 20 4 22 4 24 26 1 Drop 173 | . 18 3 49 25 10 16 1 13 35 3 Fire 679 | . 81 36 . 143 8 150 24 127 68 42 Melee . | . . . . . . . . . . . Ram 1 | . . . . . . 1 . . . . Kick 3 | . 3 . . . . . . . . . Crush 10 | . 3 . . 1 . 1 . 4 1 . Escape Stasis . | . . . . . . . . . . . Rewire 10 | . 4 . . 6 . . . . . . Trap . | . . . . . . . . . . . Miscellaneous 4 | . . . . 1 . . . . 3 . Route ------- -11/Scrapyard -10/Materials (discovered 5 exits: *Mat x3 / *Min / *Sub) -10/Subcaves (discovered 2 exits: [*Mat] / *Scr) -7/Scraptown (discovered 2 exits: *Fac x2) -5/Factory (discovered 5 exits: *Fac x3 / Upp x2) -5/Waste -5/Factory (discovered 3 exits: *Fac x3) -4/Factory -3/Research (discovered 3 exits: Res x2 / *Qua) -3/Quarantine (discovered 2 exits: [*Sec] / *Frg) -3/Protoforge History --------- Turn | Location | Event 1 | -11/Scrapyard | Discovered new exit (range 0) 1 | -11/Scrapyard | Entered Materials 310 | -10/Materials | Build established: Mutant 606 | -10/Materials | Discovered new exit (range 12) 924 | -10/Materials | Discovered new exit (range 13) 1115 | -10/Materials | Build established: Scavenger-Mutant 1306 | -10/Materials | Discovered new exit (range 16) 1498 | -10/Materials | Learned location of Storage (-7) 1566 | -10/Materials | Loaded intel: 3 trap records 1622 | -10/Materials | Identified exit to Materials 1670 | -10/Materials | Learned 2 Mines zone layouts 1709 | -10/Materials | Identified exit to Subcaves 1738 | -10/Materials | Identified exit to Mines 1778 | -10/Materials | Learned 4 Subcaves zone layouts 1829 | -10/Materials | Learned 2 Mines zone layouts 2051 | -10/Materials | Entered Subcaves 2052 | -10/Subcaves | Approached by a straggling Scientist 2083 | -10/Subcaves | Shifting Twisted Machinery released Flamer 2252 | -10/Subcaves | Ambushed by angry Subdweller bent on revenge 2267 | -10/Subcaves | Core integrity fell below 50% 2290 | -10/Subcaves | Core integrity fell below 20% 2329 | -10/Subcaves | Lost 7 parts (2p3n2w) 2371 | -10/Subcaves | Learned Materials emergency access door positions 2390 | -10/Subcaves | Learned Materials non-interactive machine intel 2439 | -10/Subcaves | Discovered new exit (range 13) 2694 | -10/Subcaves | Scientist uncovered a shortcut to Scraptown 2706 | -10/Subcaves | Entered Scraptown 2873 | -7/Scraptown | Discovered new exit (range 7) 2910 | -7/Scraptown | Scanned Subdweller tech in exchange for log data 2914 | -7/Scraptown | Learned location of 1 exit from Factory 2915 | -7/Scraptown | Learned Factory stockpile data 2916 | -7/Scraptown | Learned location of Extension (-4) 2919 | -7/Scraptown | Learned 8 Research zone layouts 3299 | -7/Scraptown | Build established: Mutant 3300 | -7/Scraptown | Visited Fellowship of the Rings 3323 | -7/Scraptown | Visited Symbiants 3342 | -7/Scraptown | Visited CR-KLE's Repair Center 3367 | -7/Scraptown | Visited Bundlers 3443 | -7/Scraptown | Visited Spacefarers 3469 | -7/Scraptown | Visited IN-MT5's Study 3534 | -7/Scraptown | Visited Cyclists 3559 | -7/Scraptown | Visited UFD Registry 3559 | -7/Scraptown | Registered with UFD as "Bullettank" 3613 | -7/Scraptown | Visited Cartography Club 3624 | -7/Scraptown | Released all parts (7) 3683 | -7/Scraptown | Learned location of Recycling (-7) 3683 | -7/Scraptown | Learned location of Lower Caves (-7) 3683 | -7/Scraptown | Learned location of Upper Caves (-5) 3683 | -7/Scraptown | Learned location of Warlord (-4) 3683 | -7/Scraptown | Learned 12 Factory zone layouts 3683 | -7/Scraptown | Learned 24 Factory zone layouts 3683 | -7/Scraptown | Learned 8 Research zone layouts 3683 | -7/Scraptown | Learned 4 Mines zone layouts 3683 | -7/Scraptown | Learned 4 Storage zone layouts 3683 | -7/Scraptown | Learned 4 Recycling zone layouts 3683 | -7/Scraptown | Learned 8 Lower Caves zone layouts 3683 | -7/Scraptown | Learned 16 Upper Caves zone layouts 3683 | -7/Scraptown | Learned 20 Upper Caves zone layouts 3683 | -7/Scraptown | Learned 4 Hub_04(d) zone layouts 3683 | -7/Scraptown | Learned Materials emergency access door positions 3683 | -7/Scraptown | Learned location of 1 exit from Lower Caves 3683 | -7/Scraptown | Learned location of 3 exits from Proximity Caves 3683 | -7/Scraptown | Identified exit to Factory 3704 | -7/Scraptown | Found Deep Structural Scanner 3724 | -7/Scraptown | Visited Abandonware Association 3734 | -7/Scraptown | Learned abandonware demo "TRNCOAT.EXE" 3734 | -7/Scraptown | Learned abandonware demo "REBOOT5.EXE" 3747 | -7/Scraptown | Visited Botcube Research 3749 | -7/Scraptown | Found Botcube 3759 | -7/Scraptown | Visited A0-MCA Data Center 3768 | -7/Scraptown | Visited Scrapoid Pod Storage 3777 | -7/Scraptown | Visited Research Penetration Think Tank 3787 | -7/Scraptown | Visited Junk Cannon Lab 3800 | -7/Scraptown | Visited Derelict Rescue Squad 3806 | -7/Scraptown | Found DRS Beacon 3817 | -7/Scraptown | Visited Junk Repository 4635 | -7/Scraptown | Entered Cyclist Reading Room 4756 | -7/Scraptown | CR-KLE repaired 6 parts 4855 | -7/Scraptown | Released all parts (7) 4887 | -7/Scraptown | Found Scrapoid Pod 4897 | -7/Scraptown | Given a B- rating by A0-MCA 4901 | -7/Scraptown | Found A0-MCA's Component Scanner 4910 | -7/Scraptown | Visited Modified Component R&D 4951 | -7/Scraptown | Found Scrap Suit 5573 | -7/Scraptown | Found Scrap Suit 5679 | -7/Scraptown | Met Optimus 5679 | -7/Scraptown | Accepted into 0bPrime 5773 | -7/Scraptown | Entered Factory 5773 | -5/Factory | Evolved 10 slots: Power x1, Propulsion x2, Utility x6, Weapon x1 5774 | -5/Factory | Identified exit to Factory 5774 | -5/Factory | Identified exit to Upper Caves 5903 | -5/Factory | P-70 Sage assimilated allied Soldier 6a 6082 | -5/Factory | Build established: Scrapper 6180 | -5/Factory | Garrison activated, responded to threat 6547 | -5/Factory | Loaded intel: 8 recycling unit locations 7006 | -5/Factory | Scrapoid Pod released 05F05-D (x5) 7041 | -5/Factory | P-70 Sage assimilated allied 05F01-D 7052 | -5/Factory | Found Scrap Suit 7124 | -5/Factory | Build established: Scavenger-Scrapper 7143 | -5/Factory | Noticed UFD Elites at a Recycling Unit 7243 | -5/Factory | Lost 3 allies 7273 | -5/Factory | First assault squad dispatched 7444 | -5/Factory | High security lockdown imminent 7457 | -5/Factory | Sucked down chute 7457 | -5/Factory | Entered Waste 7457 | -5/Waste | The area was eerily silent 7567 | -5/Waste | A Compactor rumbled back to life 7568 | -5/Waste | Spotted C-40 Crusher 7635 | -5/Waste | Destroyed C-40 Crusher 7725 | -5/Waste | Discovered new exit (range 16) 7877 | -5/Waste | A Compactor rumbled back to life 7877 | -5/Waste | Spotted C-40 Crusher 7890 | -5/Waste | Entered Factory 7980 | -5/Factory | Spotted B-75 Beast 8554 | -5/Factory | Discovered exit to Factory (range 14) 8781 | -5/Factory | Repaired Broken Adv. Heavy Siege Treads? 8837 | -5/Factory | Repaired Broken Multitool? 8917 | -5/Factory | Repaired Ovr. Railgun? 8987 | -5/Factory | Repaired Hvy. Treads? 9046 | -5/Factory | Loaded intel: 8 recycling unit locations 9046 | -5/Factory | Learned location of Protoforge (-3) 9090 | -5/Factory | First assault squad dispatched 9225 | -5/Factory | Discovered exit to Factory (range 3) 9450 | -5/Factory | Repaired Ovr. Coil Gun 9462 | -5/Factory | System corruption reached 10% 9489 | -5/Factory | Discovered exit to Factory (range 5) 9709 | -5/Factory | Garrison activated, responded to threat 9771 | -5/Factory | Destroyed 18 combat bots 9837 | -5/Factory | Entered another Factory area 9837 | -4/Factory | Evolved 2 slots: Utility x1, Weapon x1 9945 | -4/Factory | Discovered new exit (range 15) 10087 | -4/Factory | First assault squad dispatched 10283 | -4/Factory | Entered Research 10283 | -3/Research | Evolved 2 slots: Weapon x2 10284 | -3/Research | Identified exit to Quarantine 10285 | -3/Research | Identified exit to Research 10289 | -3/Research | Build established: Scavenger-Tank 10335 | -3/Research | Spotted B-86 Titan 10349 | -3/Research | Destroyed B-86 Titan 10699 | -3/Research | Destroyed 7 combat bots 10700 | -3/Research | Lost 6 parts (1p3u2w) 10790 | -3/Research | Scrapoids reinforcements arrived? 10817 | -3/Research | Lost 4 parts (1u3w) 10827 | -3/Research | Found Scrap Suit 10854 | -3/Research | Found Heavy Servo Lattice 10880 | -3/Research | P-80 Master assimilated allied 03R07-D 11033 | -3/Research | First assault squad dispatched 11061 | -3/Research | Destroyed 9 combat bots 11071 | -3/Research | Lost 6 parts (1p1n2u2w) 11169 | -3/Research | Garrison activated, responded to threat 11314 | -3/Research | Lost 4 parts (4w) 11424 | -3/Research | Entered Quarantine 11453 | -3/Quarantine | Lost 4 parts (1p3w) 11521 | -3/Quarantine | Spotted Alpha 7 11674 | -3/Quarantine | First assault squad dispatched 11679 | -3/Quarantine | Cryocooling Duct disabled 11694 | -3/Quarantine | Ambient heat levels rising (+20) 11694 | -3/Quarantine | Non-combat units ordered to evacuate 11706 | -3/Quarantine | Found Alien Artifact 11706 | -3/Quarantine | Identified Phase Armor 11907 | -3/Quarantine | Found Alien Energy Cannon 11907 | -3/Quarantine | Identified Core Cannon 11949 | -3/Quarantine | Found Alien Artifact 11972 | -3/Quarantine | System corruption reached 10% 12075 | -3/Quarantine | Build established: Scavenger-Executioner 12112 | -3/Quarantine | Found Alien Artifact 12301 | -3/Quarantine | Destroyed 9 combat bots 12543 | -3/Quarantine | Found Alien Reactor 12573 | -3/Quarantine | Identified Phase Redirector 12628 | -3/Quarantine | Spotted Fortress 12642 | -3/Quarantine | Core integrity fell below 50% 12693 | -3/Quarantine | Lost 3 parts (3u) 12739 | -3/Quarantine | Discovered new exit (range 5) 12739 | -3/Quarantine | Discovered new exit (range 6) 12747 | -3/Quarantine | Entered Protoforge 13047 | -3/Protoforge | Spotted Hotshot 13047 | -3/Protoforge | Spotted Hotshot 13047 | -3/Protoforge | Spotted Hotshot 13060 | -3/Protoforge | Destroyed Hotshot 13086 | -3/Protoforge | Destroyed Hotshot 13102 | -3/Protoforge | Destroyed Hotshot 13276 | -3/Protoforge | Spotted Hotshot 13277 | -3/Protoforge | Spotted Hotshot 13278 | -3/Protoforge | Spotted Hotshot 13306 | -3/Protoforge | Destroyed Hotshot 13316 | -3/Protoforge | Destroyed Hotshot 13328 | -3/Protoforge | Spotted Overlord 13335 | -3/Protoforge | Released all parts (14) 13336 | -3/Protoforge | Superfortress began startup sequence 13347 | -3/Protoforge | Core integrity fell below 20% 13355 | -3/Protoforge | Destroyed by P-80 Master with Gamma Rifle Last Messages --------------- 13335_ Released Adv. Transmission Jammer. 13335_ Released Adv. Cryofiber Web. 13335_ Released Quantum Rifle. 13335_ Released Imp. Heavy Treads. 13335_ Released Hcp. Storage Unit. 13335_ Released Plasma Rifle. 13335_ Released Exp. Heat Sink. 13335_ Exp. Heat Sink crushed and broken. 13335_ Released Exp. Heat Sink. 13335_ Exp. Heat Sink crushed and broken. 13335_ Released Quantum Rifle. 13335_ Quantum Rifle crushed and broken. 13336_ ALERT: Superfortress powering up for active defense. 13336_ Knocked back. 13337_ Acquired 70 matter. 13339_ System corrupted: Component data lost. 13348_ Knocked back. 13350_ O-24 Administrator sends out distress signal. Map ----- +----------------------------------------------------+ | ?????????????????????????????????????????????????? | | ?????????????????????????????????????????????????? | | ?????????????????????????????????????????????????? | | ?????????????????????????????????????????????????? | | ????????????????????????????????????? #######???? | | ????????????????????????????????????? ########### | | ????????????????????????????????????? ########### | | ?????????????????????????????????#### ########### | | ?????????????????????????????????#### ########### | | ?????????????????????????????????#### ## | | ?????????????????? ??????????????#### ## | | ?????????????????? T???????????? # ## ## """ | | ?????????????????? ??????"""""" ## # ## """" | | ?????????????????# ?????? #### ## "" " | | ?????????????????# #?????? #### ## """ | | ?????????????????# #???############# + " " | | ?????????????????# #??? + =% #= | | ?????????????????# #???""""" ## %/%= | | ?????????????????# #???"S""" ### """ !#= | | ????????????????# #??? """ ### """ !# | | ????????????????# #??? ### """ # | | ####??########### #####+####### ^ # | | ??# p o kn # | | #?# p # | | ### p # | | ### %s @ ####+##### | | # ### ########################+####### ##### | | # ### #######???????#### ## ##### | | # ### ################## = + ##### | | # ########### ######## | | # ########### #######? | | # ########### #######? | | # H # ####################? | | # #""""##### # ### ########## | | # " ## # ### """" ########## | | # " ## # """"""" ### """" ########## | | # /%! ## + """"""" ### """" ########## | | #=%! ""## # """"""" ### """" " | | # #[* ""## # ### # """ """ | | # [#!|% ""## # ### # | | ##[%=#!!![ T## #####+####### # """ """ | | ?# !=#!=!! ""## ##### ####### # | | ?#!!%!=[[!!""## ##### ###########+##+# """ """ | | ######!!!!&""## # | | ######%!=*!* ## # """ """ | | ########### ### + | | ############### # " " """ | | ### # ####+############ # | | ## # # ## # """ """ | | ## ??"""" # # " ## # | +----------------------------------------------------+ Best States ------------- Heat Dissipation 202 Coolant Potential 65 Energy Generation 41 Energy Capacity 530 Matter Stores 300 Matter Capacity 300 Sight Range 22 Robot Scan Range 16 Terrain Scan Density 10 Jamming Range 16 Base Temperature (-) 200 Armor Coverage 1650 Resistance: TH 10 Propulsion Shielding 90 Weapon Cycling 20 Evasion (%) 62 Core Analysis 6 Recoil Reduction 4 Kinecelleration 40 Offensive Hacking 24 Item Schematics ----------------- Multitool | -5/Factory | Scanalyzed Ovr. Railgun | -4/Factory | Scanalyzed Lyr. Heavy Armor Plating | -3/Quarantine | Hacked Robot Schematics ------------------ None Fabricated ------------ Nothing Repaired ---------- Adv. Heavy Siege Treads | 5% | -5/Factory | Broken Multitool | 76% | -5/Factory | Broken Ovr. Railgun | 28% | -5/Factory Hvy. Treads | 30% | -5/Factory Ovr. Coil Gun | 30% | -5/Factory Alien Tech Used ----------------- Phase Armor Core Cannon Phase Redirector Achievements -------------- None Challenges ------------ None Game ------ Seed DrainedWeightBarrier Manual? 0 Play Time 02:29:30 Cumulative 215.6 hours Start 2025.05.10 @ 20:15:26 End 2025.05.12 @ 17:58:29 Sessions 5 Manual Loads 0 Difficulty Rogue Special Mode None Game No. 78 Rogue 78 Adventurer 0 Explorer 0 Win Type - Total 4 Types 1/0/2/0/0/0/0/0/0/1 Lore% 68 Gallery% 76 Achievement% 70 Wizard Run 0 Options --------- Layout 1 ASCII 0 Keyboard 1 Movement Arrows Keybinds 0 Fullscreen 2 Font 24/Smallcaps Map View 50x35 Zoom Use 0% Tactical HUD 1 Map Filters NONE Filters NONE Steam 1 RUN: ade1e163-1da4-4b9b-9006-658c83e1e980